bitfinex/quotes_SOLUSD_20220302
["timestamp","ask_amount","ask_price","bid_price","bid_amount"]
[1646210709826,6.0,104.29,104.2,71.65471685]
[1646210710027,6.25,104.29,104.2,71.65471685]
[1646210711922,6.25,104.29,104.2,76.65471685]
[1646210712122,6.25,104.29,104.2,71.65471685]
[1646210712523,6.25,104.29,104.2,76.65471685]
[1646210713130,6.25,104.29,104.2,71.65471685]
[1646210713326,159.46,104.29,104.2,68.85567682]
[1646210713525,3.99548895,104.28,104.19,3.837]
[1646210713725,6.0,104.27,104.19,3.837]
[1646210713926,0.15848895,104.26,104.19,3.837]
[1646210714228,0.20644682,104.28,104.19,3.837]
[1646210714424,0.20644682,104.26,104.19,3.837]
[1646210714624,101.96644682,104.26,104.19,3.837]
[1646210714826,165.995,104.26,104.19,3.837]
[1646210715026,153.21,104.24,104.19,3.837]
[1646210715225,153.21,104.22,104.13,73.0757]
[1646210715428,101.76,104.21,104.12,11.54]
[1646210715628,102.01,104.21,104.12,11.54]
[1646210715824,159.46,104.21,104.12,74.28386676]
[1646210716924,159.46,104.21,104.12,25.9437]
[1646210717126,159.46,104.21,104.12,26.1937]
[1646210717926,159.46,104.21,104.12,11.54]
[1646210718130,0.1425986,104.2,104.09,14.08904003]
[1646210718729,0.1425986,104.2,104.09,11.54]
[1646210718929,0.19146553,104.18,104.07,73.57614363]
[1646210719128,157.051,104.17,104.07,71.0271036]
[1646210719328,95.76,104.15,104.07,56.5393036]
[1646210719529,6.0,104.14,104.07,44.9993036]
[1646210719930,101.76,104.14,104.07,44.9993036]
[1646210720133,102.01,104.14,104.07,44.9993036]
[1646210720335,6.25,104.14,104.07,44.9993036]
[1646210721232,6.25,104.14,104.07,59.4108036]
[1646210721533,0.25,104.14,104.07,59.33834363]
[1646210721732,6.0,104.13,104.07,59.33834363]
[1646210721932,0.25,104.13,104.07,47.54834363]
[1646210722231,6.25,104.13,104.07,2.54904003]
[1646210722432,159.46,104.13,104.04,11.54]
[1646210722632,3.843,104.12,104.05,2.54904003]
[1646210722832,6.0,104.11,104.05,2.54904003]
[1646210723236,6.25,104.11,104.05,2.54904003]
[1646210723432,6.25,104.11,104.06,49.48496147]
[1646210723832,0.25,104.11,104.06,49.48496147]
[1646210724234,6.25,104.12,104.06,49.48496147]
[1646210725134,159.46,104.12,104.05,2.54904003]
[1646210725333,159.46,104.12,104.05,2.79904003]
[1646210726235,159.46,104.12,104.05,55.41361786]
[1646210726635,63.7,104.12,104.05,55.41361786]
[1646210727035,5.0125124,104.11,104.05,55.41361786]
[1646210727235,6.0,104.1,104.05,55.41361786]
[1646210727438,13.86824311,104.14,104.05,69.82791786]
[1646210727635,6.0,104.13,104.05,69.82791786]
[1646210728536,159.21,104.13,104.05,69.82791786]
[1646210728738,159.46,104.13,104.05,67.27887783]
[1646210728938,159.46,104.13,104.05,52.86457783]
[1646210729138,159.46,104.13,104.05,52.61457783]
[1646210729339,0.11143291,104.12,104.03,5.0]
[1646210729538,0.11143291,104.12,104.01,2.54904003]
[1646210729539,3.95443291,104.12,104.01,2.54904003]
[1646210729740,0.25130649,104.09,103.99,11.54]
[1646210729940,0.25130649,104.09,103.99,5.0]
[1646210729941,172.14530649,104.09,103.99,5.0]
[1646210730139,0.25130649,104.07,103.99,5.0]
[1646210730340,105.85630649,104.07,103.96,59.61795048]
[1646210730741,105.855,104.07,103.96,59.61795048]
[1646210730942,105.855,104.07,103.97,3.845]
[1646210731140,120.2811,104.07,103.97,3.845]
[1646210731341,181.32054117,104.07,103.97,3.845]
[1646210731543,153.21,104.05,103.97,3.845]
[1646210731739,101.76,104.04,103.95,3.0298315]
[1646210732143,102.01,104.04,103.95,3.0298315]
[1646210732343,159.46,104.04,103.95,3.0298315]
[1646210732540,3.846,104.03,103.95,3.0298315]
[1646210732740,6.0,104.02,103.95,3.0298315]
[1646210732942,15.106,104.02,103.95,3.2798315]
[1646210733242,15.106,104.02,103.95,3.0298315]
[1646210733243,15.356,104.02,103.95,3.0298315]
[1646210733444,15.356,104.02,103.96,53.97601031]
[1646210734545,6.25,104.02,103.96,56.52505034]
[1646210734745,0.25,104.02,103.96,56.52505034]
[1646210734943,0.25,104.04,103.96,68.06505034]
[1646210735145,6.25,104.06,103.96,68.31505034]
[1646210735347,3.845,104.05,103.96,68.31505034]
[1646210735548,6.0,104.04,103.96,68.31505034]
[1646210735753,6.25,104.04,103.96,68.31505034]
[1646210736152,6.0,104.03,103.96,82.74055034]
[1646210736353,6.0,104.05,103.96,82.74055034]
[1646210736551,6.0,104.05,103.97,3.845]
[1646210736753,6.0,104.06,103.98,60.8883407]
[1646210736954,6.0,104.06,103.98,61.1383407]
[1646210737555,6.25,104.06,103.98,61.1383407]
[1646210737755,159.46,104.06,103.97,6.39404003]
[1646210737954,0.18054757,104.05,103.95,3.0298315]
[1646210738567,3.846,104.04,103.95,3.0298315]
[1646210738770,101.76,104.03,103.95,3.0298315]
[1646210739164,102.01,104.03,103.95,3.0298315]
[1646210739365,109.016,104.03,103.95,0.48079147]
[1646210739765,153.21,104.02,103.95,0.48079147]
[1646210739965,159.21,104.01,103.95,0.48079147]
[1646210740167,153.21,104.01,103.95,0.48079147]
[1646210740367,101.76,104.0,103.95,0.48079147]
[1646210740567,109.884,104.0,103.95,0.48079147]
[1646210740767,167.334,104.0,103.95,0.48079147]
[1646210741170,14.124,104.0,103.95,0.48079147]
[1646210741370,23.8371,104.03,103.95,3.0298315]
[1646210741570,6.0,104.02,103.96,46.69323291]
[1646210741774,23.6919,104.04,103.96,46.94323291]
[1646210741968,6.0,104.03,103.96,49.49227294]
[1646210742171,6.0,104.03,103.96,63.91837294]
[1646210743170,52.1658,104.07,103.96,159.67837294]
[1646210743370,18.8766057,104.08,103.98,151.06350005]
[1646210743572,3.845,104.1,104.01,56.38348033]
[1646210743772,45.809,104.11,104.01,56.63348033]
[1646210743970,45.809,104.11,104.03,51.8544952]
[1646210744173,95.76,104.1,104.03,0.25]
[1646210744372,3.843,104.09,104.02,14.08904003]
[1646210744572,3.843,104.09,104.02,2.79904003]
[1646210745171,3.843,104.09,104.02,63.36078279]
[1646210745572,6.0,104.08,104.02,2.79904003]
[1646210745773,159.21,104.08,104.0,11.54]
[1646210745977,3.844,104.07,103.98,2.54904003]
[1646210746175,6.0,104.06,103.96,5.0]
[1646210746380,6.25,104.06,103.96,16.54]
[1646210746577,6.25,104.06,103.97,51.66322047]
[1646210746977,6.25,104.06,103.98,2.54904003]
[1646210747177,6.25,104.06,103.98,2.79904003]
[1646210747387,6.25,104.06,103.96,14.08904003]
[1646210747579,6.25,104.06,103.96,2.54904003]
[1646210747580,165.045,104.06,103.96,2.54904003]
[1646210747780,167.43511399,104.06,103.95,0.48079147]
[1646210747982,165.045,104.06,103.95,0.48079147]
[1646210748182,163.305,104.06,103.96,3.845]
[1646210748385,159.46,104.06,103.97,59.12341897]
[1646210748781,159.46,104.06,103.97,73.54891897]
[1646210748984,159.46,104.06,103.96,17.93404003]
[1646210749181,163.305,104.06,103.96,15.385]
[1646210749382,163.305,104.06,103.96,11.54]
[1646210749982,177.7327,104.06,103.96,60.83319698]
[1646210750983,177.7327,104.06,103.96,11.54]
[1646210751182,177.7327,104.06,103.95,0.48079147]
[1646210751383,182.7327,104.06,103.95,0.48079147]
[1646210752385,177.7327,104.06,103.95,47.63378156]
[1646210752584,153.21,104.04,103.95,47.63378156]
[1646210752785,95.76,104.02,103.95,0.48079147]
[1646210752985,6.0,104.01,103.95,0.48079147]
[1646210753185,102.01,104.01,103.95,0.48079147]
[1646210754786,6.25,104.01,103.95,0.48079147]
[1646210754987,6.0,104.03,103.96,11.54]
[1646210755187,28.5988,104.05,103.97,52.54260767]
[1646210755188,6.0,104.04,103.97,52.54260767]
[1646210755388,6.0,104.04,103.97,52.79260767]
[1646210755888,6.0,104.04,103.97,0.25]
[1646210756088,6.25,104.04,103.97,0.25]
[1646210756489,6.25,104.04,103.96,11.79]
[1646210756890,159.46,104.04,103.96,11.79]
[1646210757889,163.306,104.04,103.96,11.54]
[1646210758890,5.01502684,104.03,103.97,54.1332029]
[1646210759194,6.0,104.02,103.97,54.3832029]
[1646210759590,106.77486386,104.04,103.97,54.3832029]
[1646210759790,11.01486386,104.04,103.97,54.3832029]
[1646210760490,153.21,104.03,103.96,11.54]
[1646210760695,101.76,104.02,103.95,15.86579147]
[1646210761091,102.01,104.02,103.95,15.86579147]
[1646210761795,159.46,104.02,103.95,15.86579147]
[1646210761993,159.46,104.02,103.95,4.32579147]
[1646210762792,161.85589687,104.02,103.95,0.48079147]
[1646210762994,187.55440222,104.02,103.95,0.48079147]
[1646210763192,167.646,104.0,103.95,0.48079147]
[1646210763394,57.45,103.98,103.95,0.48079147]
[1646210763593,9.03219997,103.97,103.91,51.26840762]
[1646210763995,9.28219997,103.97,103.91,51.26840762]
[1646210764596,105.04219997,103.97,103.91,51.26840762]
[1646210765296,162.49219997,103.97,103.91,51.26840762]
[1646210765698,162.49219997,103.97,103.89,74.5005]
[1646210765898,162.49219997,103.97,103.89,0.25]
[1646210766298,162.49219997,103.97,103.88,14.437]
[1646210766500,162.49219997,103.97,103.86,25.98]
[1646210766800,166.34119997,103.97,103.87,51.12171091]
[1646210767198,181.07979997,103.97,103.87,51.12171091]
[1646210767398,177.23079997,103.97,103.86,25.98]
[1646210767599,3.849,103.96,103.84,39.3797]
[1646210767899,153.21,103.94,103.84,50.9197]
[1646210768100,159.21,103.93,103.84,50.9197]
[1646210768300,0.16601652,103.92,103.82,5.0]
[1646210768498,0.16601652,103.92,103.83,55.17181701]
[1646210768698,2.39589687,103.92,103.83,55.17181701]
[1646210768899,101.76,103.91,103.83,55.17181701]
[1646210769100,102.01,103.91,103.83,55.17181701]
[1646210769704,6.25,103.91,103.83,55.17181701]
[1646210769905,0.25,103.91,103.84,11.54]
[1646210770105,6.0,103.93,103.85,55.2342123]
[1646210770306,6.0,103.93,103.85,55.4842123]
[1646210771110,6.0,103.94,103.85,179.54869034]
[1646210771314,0.25,103.94,103.85,179.54869034]
[1646210771511,0.25,103.96,103.85,182.09773037]
[1646210771711,6.25,103.97,103.85,182.09773037]
[1646210771928,102.01,103.97,103.85,182.09773037]
[1646210772129,116.4498,103.97,103.85,182.09773037]
[1646210772726,20.6898,103.97,103.85,182.09773037]
[1646210773526,6.25,103.97,103.85,182.09773037]
[1646210774428,10.099,103.97,103.85,182.09773037]
[1646210775027,105.859,103.97,103.85,86.33773037]
[1646210775231,105.859,103.97,103.85,182.09773037]
[1646210775426,163.309,103.97,103.85,86.08773037]
[1646210775627,3.849,103.96,103.85,69.6753123]
[1646210775826,6.0,103.95,103.85,69.6753123]
[1646210776027,11.0,103.95,103.85,72.22435233]
[1646210776230,6.25,103.95,103.85,72.22435233]
[1646210776526,0.25,103.95,103.85,72.22435233]
[1646210776727,6.0,103.94,103.85,72.22435233]
[1646210776929,159.46,103.94,103.85,72.22435233]
[1646210777130,159.46,103.94,103.85,69.6753123]
[1646210778129,173.903,103.94,103.85,69.6753123]
[1646210779130,116.453,103.94,103.85,69.6753123]
[1646210779433,20.693,103.94,103.85,69.9253123]
[1646210779635,6.25,103.94,103.85,177.2253123]
[1646210779831,0.25,103.94,103.85,177.2253123]
[1646210780032,6.25,103.95,103.85,177.2253123]
[1646210780433,6.25,103.95,103.85,181.94925172]
[1646210780633,0.25,103.95,103.85,181.94925172]
[1646210780832,6.0,103.96,103.85,181.94925172]
[1646210781031,6.0,103.96,103.88,14.437]
[1646210781233,6.0,103.96,103.89,56.81692349]
[1646210781433,6.0,103.96,103.89,57.06692349]
[1646210781832,24.5007,103.97,103.89,57.06692349]
[1646210782033,22.8882,103.99,103.89,57.06692349]
[1646210782235,6.0,103.98,103.89,57.06692349]
[1646210782433,173.6464,103.98,103.89,57.06692349]
[1646210782634,173.6464,103.98,103.89,45.52692349]
[1646210782832,116.1964,103.98,103.89,45.52692349]
[1646210783639,120.2944,103.98,103.89,45.52692349]
[1646210784135,173.8964,103.98,103.89,45.52692349]
[1646210784339,176.29229687,103.98,103.89,45.52692349]
[1646210784936,176.29229687,103.98,103.89,45.27692349]
[1646210785236,180.14029687,103.98,103.89,45.52692349]
[1646210785436,203.73982377,103.98,103.89,45.52692349]
[1646210785638,238.51051042,103.98,103.89,45.52692349]
[1646210785936,239.89761948,103.98,103.85,48.0916]
[1646210786136,110.2036,103.93,103.85,48.3416]
[1646210786336,6.0,103.92,103.85,0.25]
[1646210786738,6.25,103.92,103.85,0.25]
[1646210786938,102.01,103.92,103.85,0.25]
[1646210787140,173.9046,103.92,103.84,57.07604174]
[1646210787345,176.30049687,103.92,103.84,57.07604174]
[1646210788746,0.11855305,103.91,103.81,62.7018]
[1646210788941,0.11855305,103.91,103.81,59.1018]
[1646210788942,3.851,103.91,103.81,59.1018]
[1646210789145,167.6596,103.89,103.79,15.391]
[1646210789342,159.21,103.88,103.79,4.101]
[1646210789547,159.46,103.88,103.79,4.101]
[1646210789745,159.46,103.88,103.79,0.25]
[1646210789947,153.21,103.86,103.79,0.25]
[1646210790145,6.0,103.85,103.79,0.25]
[1646210790344,6.25,103.85,103.79,0.25]
[1646210790546,6.25,103.85,103.77,11.54]
[1646210790746,6.25,103.85,103.78,45.2647938]
[1646210790947,6.12336907,103.85,103.78,45.2647938]
[1646210793148,6.12336907,103.85,103.78,45.5147938]
[1646210794251,8.86906767,103.87,103.78,74.05423383]
[1646210794449,5.01706767,103.87,103.78,77.90623383]
[1646210794650,5.01706767,103.87,103.78,92.78893033]
[1646210795053,6.0,103.86,103.78,74.05423383]
[1646210795550,102.01,103.86,103.78,71.5051938]
[1646210795951,6.25,103.86,103.78,71.5051938]
[1646210797050,20.703,103.86,103.78,71.5051938]
[1646210797652,20.453,103.86,103.78,71.5051938]
[1646210797949,6.0,103.86,103.78,71.5051938]
[1646210798149,6.0,103.86,103.78,74.05423383]
[1646210798561,6.0,103.86,103.78,92.78893033]
[1646210798751,5.01706767,103.87,103.81,14.445]
[1646210798952,96.16033499,103.91,103.78,18.60808526]
[1646210799153,153.21,103.83,103.71,62.94807473]
[1646210799351,0.4587042,103.82,103.69,29.05054195]
[1646210799551,0.4587042,103.82,103.7,3.855]
[1646210799752,0.4587042,103.82,103.69,38.7919]
[1646210799953,0.4587042,103.8,103.7,44.98311759]
[1646210800155,95.76,103.79,103.7,44.98311759]
[1646210800355,6.0,103.78,103.7,44.98311759]
[1646210800553,6.25,103.78,103.7,44.98311759]
[1646210800753,6.25,103.78,103.72,45.71598038]
[1646210801159,6.0,103.77,103.72,45.71598038]
[1646210801456,6.0,103.77,103.68,3.855]
[1646210801457,153.21,103.76,103.68,3.855]
[1646210801654,6.0,103.75,103.68,3.855]
[1646210801853,6.25,103.75,103.66,26.0142]
[1646210802057,6.25,103.75,103.66,121.7742]
[1646210802253,0.25,103.75,103.67,147.89520422]
[1646210802457,0.25,103.75,103.67,163.29120422]
[1646210802657,0.25,103.75,103.67,67.78120422]
[1646210803055,159.46,103.78,103.69,46.61022347]
[1646210803257,161.2267581,103.78,103.69,46.61022347]
[1646210803658,3.855,103.77,103.69,46.61022347]
[1646210803860,6.0,103.76,103.69,46.61022347]
[1646210804056,173.9271,103.76,103.69,46.61022347]
[1646210804458,178.09589791,103.76,103.69,46.61022347]
[1646210804659,178.09589791,103.76,103.65,11.54]
[1646210804858,185.10289791,103.76,103.65,11.54]
[1646210805060,182.70026204,103.76,103.64,165.8198]
[1646210805262,182.70026204,103.76,103.64,177.3598]
[1646210805662,182.70026204,103.76,103.65,51.52469385]
[1646210805961,182.70026204,103.76,103.65,65.99379385]
[1646210806160,207.62986204,103.76,103.65,65.99379385]
[1646210806559,205.8637,103.76,103.65,65.99379385]
[1646210807862,45.3967,103.76,103.65,81.39079385]
[1646210808060,3.857,103.78,103.66,6.0]
[1646210808259,24.2451,103.81,103.69,14.4594]
[1646210808460,5.0,103.84,103.71,59.25218851]
[1646210808660,3.854,103.83,103.71,70.79218851]
[1646210808861,3.854,103.83,103.73,43.25449696]
[1646210809061,3.854,103.83,103.73,43.50449696]
[1646210809260,110.2169,103.83,103.73,43.50449696]
[1646210809660,9.854,103.82,103.73,43.50449696]
[1646210810161,6.0,103.82,103.73,57.96259696]
[1646210810567,6.25,103.82,103.73,57.96259696]
[1646210810763,20.7086,103.82,103.73,57.96259696]
[1646210811164,120.3226,103.82,103.73,57.96259696]
[1646210811465,116.4686,103.82,103.73,57.96259696]
[1646210811874,118.08992199,103.82,103.73,57.96259696]
[1646210812066,14.4616,103.8,103.73,43.25449696]
[1646210812268,6.0,103.79,103.73,43.25449696]
[1646210812469,6.25,103.79,103.73,43.25449696]
[1646210814295,6.25,103.79,103.64,16.24851733]
[1646210814296,0.58230705,103.71,103.63,35.2392214]
[1646210814494,95.76,103.73,103.61,0.48236912]
[1646210814694,101.76,103.72,103.61,0.48236912]
[1646210814893,6.25,103.72,103.61,107.78236912]
[1646210815093,0.25,103.72,103.66,46.80678575]
[1646210816093,0.25,103.73,103.66,46.80678575]
[1646210816294,6.0,103.73,103.66,46.80678575]
[1646210816495,6.25,103.73,103.66,46.80678575]
[1646210816895,0.25,103.73,103.66,46.80678575]
[1646210817697,102.01,103.74,103.66,46.80678575]
[1646210818198,110.2312,103.73,103.66,46.80678575]
[1646210818396,6.0,103.72,103.66,46.80678575]
[1646210818696,6.25,103.72,103.66,46.80678575]
[1646210819101,6.0,103.74,103.66,46.80678575]
[1646210819300,6.0,103.71,103.66,46.80678575]
[1646210819901,6.0,103.74,103.66,46.80678575]
[1646210820901,20.4704,103.74,103.66,46.80678575]
[1646210821102,20.7204,103.74,103.66,46.80678575]
[1646210821302,26.4729897,103.74,103.66,46.80678575]
[1646210821701,95.76,103.73,103.66,46.80678575]
[1646210821903,110.234,103.71,103.63,48.3441]
[1646210822104,101.76,103.7,103.63,48.3441]
[1646210822304,6.25,103.7,103.63,48.3441]
[1646210822704,6.0,103.69,103.61,131.66026912]
[1646210822905,0.25,103.69,103.62,59.86362628]
[1646210823104,0.25,103.69,103.62,60.11362628]
[1646210823307,6.25,103.69,103.62,60.11362628]
[1646210823904,0.25,103.69,103.62,155.87362628]
[1646210824104,20.4732,103.72,103.62,155.87362628]
[1646210824306,20.4732,103.72,103.62,167.41362628]
[1646210824906,27.819,103.75,103.62,167.41362628]
[1646210825106,23.961,103.75,103.62,205.98882628]
[1646210825507,119.721,103.75,103.64,5.0]
[1646210825708,38.4293,103.75,103.65,55.39985663]
[1646210825910,38.4293,103.75,103.65,55.64985663]
[1646210826107,134.4393,103.75,103.65,55.39985663]
[1646210826308,9.857,103.74,103.65,55.39985663]
[1646210826509,3.857,103.74,103.65,55.39985663]
[1646210826811,15.73406149,103.83,103.65,162.69985663]
[1646210827008,52.8719,103.82,103.67,100.76]
[1646210827209,95.76,103.8,103.68,111.92453546]
[1646210827409,3.855,103.79,103.69,14.4623]
[1646210827611,3.855,103.79,103.7,58.63328266]
[1646210827808,3.855,103.79,103.7,58.88328266]
[1646210828211,6.0,103.78,103.7,58.88328266]
[1646210828414,6.0,103.79,103.7,73.34528266]
[1646210828615,102.01,103.79,103.7,73.34528266]
[1646210828813,102.01,103.79,103.7,73.09528266]
[1646210829214,116.2224,103.79,103.7,58.63328266]
[1646210829414,20.4624,103.79,103.7,58.63328266]
[1646210829615,20.4624,103.79,103.7,58.88328266]
[1646210829815,57.8719,103.82,103.7,154.64328266]
[1646210830015,6.0,103.81,103.7,157.19232269]
[1646210830317,20.4607,103.81,103.72,58.87027818]
[1646210830516,6.0,103.81,103.72,91.49037818]
[1646210830716,49.0169,103.82,103.72,189.79941821]
[1646210831317,3.854,103.84,103.72,189.79941821]
[1646210831518,6.0,103.83,103.72,189.79941821]
[1646210831717,6.0,103.84,103.72,193.65341821]
[1646210832619,6.0,103.84,103.72,208.25441821]
[1646210832818,6.0,103.86,103.72,352.45441821]
[1646210833019,6.0,103.86,103.74,95.76]
[1646210833218,6.0,103.86,103.77,110.2112]
[1646210833421,3.854,103.88,103.79,95.76]
[1646210833620,3.854,103.88,103.8,61.35120917]
[1646210833818,48.6698,103.89,103.8,61.60120917]
[1646210834619,63.1192,103.89,103.8,76.05000917]
[1646210834819,158.8792,103.89,103.8,76.05000917]
[1646210835020,158.8792,103.89,103.8,75.80000917]
[1646210835221,158.8792,103.89,103.8,61.35120917]
[1646210835420,3.851,103.88,103.8,61.35120917]
[1646210835622,14.4512,103.87,103.8,61.35120917]
[1646210835825,14.7012,103.87,103.8,61.35120917]
[1646210836022,6.0,103.86,103.8,61.35120917]
[1646210836221,102.01,103.86,103.8,49.81120917]
[1646210836822,120.315,103.86,103.8,49.81120917]
[1646210838022,116.463,103.86,103.8,49.81120917]
[1646210840521,20.703,103.86,103.8,49.81120917]
[1646210841324,14.4505,103.88,103.8,49.81120917]
[1646210841523,6.0,103.87,103.8,50.06120917]
[1646210841723,6.0,103.87,103.8,61.60120917]
[1646210841926,6.0,103.88,103.8,61.60120917]
[1646210842224,5.02213525,103.91,103.8,72.4012492]
[1646210842425,26.6788,103.93,103.81,99.611]
[1646210842625,6.0,103.92,103.82,155.36912529]
[1646210842824,6.0,103.92,103.82,158.16816532]
[1646210843023,26.6788,103.93,103.82,158.16816532]
[1646210843224,6.0,103.92,103.84,51.05091948]
[1646210843424,6.0,103.92,103.85,11.54]
[1646210843627,6.0,103.92,103.86,57.34926866]
[1646210843828,6.0,103.92,103.86,57.59926866]
[1646210845227,6.25,103.92,103.86,57.59926866]
[1646210845826,6.25,103.92,103.86,57.34926866]
[1646210846431,6.0,103.92,103.86,57.34926866]
[1646210846852,101.76,103.92,103.86,57.34926866]
[1646210847030,95.76,103.92,103.86,57.34926866]
[1646210847230,6.0,103.91,103.86,57.34926866]
[1646210847630,6.25,103.91,103.86,57.34926866]
[1646210847831,0.25,103.91,103.86,57.34926866]
[1646210848032,116.4546,103.92,103.86,57.34926866]
[1646210848231,20.6946,103.92,103.86,57.34926866]
[1646210848835,6.25,103.92,103.86,57.34926866]
[1646210849334,116.4543,103.92,103.86,57.34926866]
[1646210849538,175.55288587,103.92,103.81,3.85]
[1646210849735,0.28330961,103.91,103.81,15.39]
[1646210849933,0.28330961,103.91,103.81,11.54]
[1646210850434,95.76,103.88,103.82,56.32951233]
[1646210850636,101.76,103.87,103.82,56.32951233]
[1646210850834,6.25,103.87,103.82,56.32951233]
[1646210851236,0.25,103.87,103.82,56.32951233]
[1646210851937,103.87243241,103.89,103.82,56.32951233]
[1646210852138,14.4519,103.87,103.82,56.32951233]
[1646210852338,6.0,103.86,103.82,56.32951233]
[1646210852539,6.25,103.86,103.82,56.32951233]
[1646210854942,6.0,103.86,103.82,56.32951233]
[1646210855340,6.0,103.88,103.82,56.32951233]
[1646210856343,6.25,103.88,103.82,56.32951233]
[1646210858144,63.7,103.88,103.82,56.32951233]
[1646210858345,97.40949102,103.87,103.82,56.32951233]
[1646210858545,95.76,103.85,103.82,56.32951233]
[1646210858747,6.0,103.84,103.82,56.32951233]
[1646210859849,3.03219997,103.83,103.82,56.32951233]
[1646210860050,9.28219997,103.83,103.82,56.32951233]
[1646210861055,9.28219997,103.83,103.77,48.5299]
[1646210861257,6.1261018,103.82,103.77,0.25]
[1646210861657,6.0,103.82,103.77,0.25]
[1646210862073,0.25,103.83,103.77,0.25]
[1646210862271,6.25,103.84,103.76,59.70631489]
[1646210863876,102.01,103.84,103.76,59.45631489]
[1646210864075,103.67955071,103.84,103.76,59.45631489]
[1646210864272,0.1443035,103.83,103.76,59.45631489]
[1646210864875,102.01,103.84,103.76,59.45631489]
[1646210865077,6.25,103.84,103.76,59.45631489]
[1646210865676,6.0,103.83,103.76,59.45631489]
[1646210865976,0.25,103.83,103.76,59.45631489]
[1646210866381,102.01,103.83,103.76,59.45631489]
[1646210866576,6.0,103.82,103.76,59.45631489]
[1646210866777,6.25,103.82,103.76,59.45631489]
[1646210868981,6.0,103.82,103.76,59.45631489]
[1646210869182,6.0,103.82,103.76,59.70631489]
[1646210869387,110.281,103.83,103.72,2.54904003]
[1646210869689,6.43883901,103.82,103.71,5.0]
[1646210869883,0.18240835,103.8,103.71,5.0]
[1646210870086,101.20248057,103.79,103.67,11.54]
[1646210870285,101.20248057,103.79,103.63,121.0418]
[1646210870286,95.76,103.77,103.68,52.9836889]
[1646210870484,103.73698339,103.76,103.68,52.9836889]
[1646210870782,103.98698339,103.76,103.68,52.9836889]
[1646210870982,6.25,103.76,103.68,52.9836889]
[1646210871184,0.25,103.76,103.68,52.9836889]
[1646210871388,0.25,103.76,103.68,53.2336889]
[1646210871585,6.0,103.77,103.68,53.2336889]
[1646210871586,20.7153,103.77,103.68,53.2336889]
[1646210871984,116.4753,103.77,103.68,53.2336889]
[1646210872586,116.4753,103.77,103.68,52.9836889]
[1646210872787,175.83930555,103.77,103.68,52.9836889]
[1646210872988,110.2307,103.74,103.68,52.9836889]
[1646210873192,6.0,103.73,103.68,52.9836889]
[1646210873388,6.25,103.73,103.68,52.9836889]
[1646210874187,102.01,103.73,103.68,52.9836889]
[1646210874588,175.51872574,103.73,103.62,84.5006]
[1646210874791,175.51872574,103.73,103.62,16.54]
[1646210874792,179.37672574,103.73,103.62,16.54]
[1646210874988,179.37672574,103.73,103.62,11.54]
[1646210875388,175.51872574,103.73,103.62,11.54]
[1646210875588,189.92032574,103.73,103.63,57.07341659]
[1646210877589,3.858,103.72,103.63,57.07341659]
[1646210877789,110.2358,103.7,103.63,57.07341659]
[1646210877990,6.0,103.69,103.63,57.07341659]
[1646210878191,102.01,103.69,103.63,57.07341659]
[1646210878391,102.01,103.69,103.61,0.48236912]
[1646210878993,173.9365,103.69,103.61,0.48236912]
[1646210879191,4.06076847,103.68,103.61,0.48236912]
[1646210879392,154.96203721,103.66,103.61,0.48236912]
[1646210879591,95.76,103.64,103.61,0.48236912]
[1646210879792,104.79219997,103.63,103.61,0.48236912]
[1646210879993,104.79219997,103.63,103.53,11.54]
[1646210879994,119.52879997,103.63,103.53,11.54]
[1646210880191,121.39345525,103.63,103.52,11.54]